fUSD/lending_fUSD_20241209
["ID","MTS","AMOUNT","RATE_DAILY","PERIOD"]
[344725814,1733745054307,-162.23802384,0.000187,2]
[344725815,1733745054316,-6503.01252404,0.000187,2]
[344725816,1733745054326,-1500.0,0.00018701,2]
[344725817,1733745054335,-150.0,0.00018701,2]
[344725818,1733745054345,-150.0,0.00018702,2]
[344725819,1733745054354,-150.0,0.00018708,2]
[344725820,1733745054363,-2000.0,0.00018742,2]
[344725821,1733745054372,-3500.0,0.00018742,2]
[344725822,1733745054381,-1500.0,0.00018747,2]
[344725823,1733745054390,-1500.0,0.00018748,2]
[344725824,1733745054399,-1500.0,0.0001876,2]
[344725825,1733745054408,-1500.0,0.00018761,2]
[344725826,1733745054417,-700.0,0.0001877,2]
[344725827,1733745054426,-700.0,0.0001877,2]
[344725828,1733745054436,-700.0,0.0001877,2]
[344725829,1733745054444,-1500.0,0.0001877,2]
[344725830,1733745054453,-150.0,0.00018778,2]
[344725831,1733745054462,-150.0,0.00018789,2]
[344725832,1733745054471,-10016.7711087,0.00018796,2]
[344725833,1733745054480,-150.0,0.00018798,2]
[344725834,1733745054489,-14951.68656626,0.00018798,2]
[344725835,1733745054498,-150.0,0.00018798,2]
[344725836,1733745054507,-4072.99,0.00018799,2]
[344725837,1733745054516,-16116.10176382,0.00018799,2]
[344725838,1733745054526,-39697754.10101972,0.000188,2]
[344725839,1733745054535,-202.3,0.000188,2]
[344725840,1733745054546,-202.3,0.000188,2]
[344725841,1733745054556,-218.0,0.000188,2]
[344725842,1733745054566,-218.0,0.000188,2]
[344725843,1733745054576,-218.0,0.000188,2]
[344725844,1733745054585,-218.0,0.000188,2]
[344725845,1733745054595,-218.0,0.000188,2]
[344725846,1733745054605,-218.0,0.000188,2]
[344725847,1733745054614,-218.0,0.000188,2]
[344725848,1733745054624,-218.0,0.000188,2]
[344725849,1733745054633,-201.0,0.000188,2]
[344725850,1733745054643,-201.0,0.000188,2]
[344725851,1733745054652,-201.0,0.000188,2]
[344725852,1733745054661,-201.0,0.000188,2]
[344725853,1733745054670,-201.0,0.000188,2]
[344725854,1733745054679,-201.0,0.000188,2]
[344725855,1733745054688,-201.0,0.000188,2]
[344725856,1733745054698,-201.0,0.000188,2]
[344725857,1733745054707,-201.0,0.000188,2]
[344725858,1733745054716,-300.0,0.000188,2]
[344725859,1733745054726,-300.0,0.000188,2]
[344725860,1733745054735,-300.0,0.000188,2]
[344725861,1733745054745,-300.0,0.000188,2]
[344725862,1733745054754,-300.0,0.000188,2]
[344725863,1733745054763,-204.0,0.000188,2]
[344725864,1733745054772,-204.0,0.000188,2]
[344725865,1733745054781,-204.0,0.000188,2]
[344725866,1733745054792,-204.0,0.000188,2]
[344725867,1733745054802,-204.0,0.000188,2]
[344725868,1733745054811,-204.0,0.000188,2]
[344725869,1733745054821,-154.737417,0.000188,2]
[344725870,1733745054830,-171.601037,0.000188,2]
[344725871,1733745054843,-259.0,0.000188,2]
[344725872,1733745054900,-259.0,0.000188,2]
[344725873,1733745054911,-256.089104,0.000188,2]
[344725874,1733745054921,-256.089104,0.000188,2]
[344725875,1733745054931,-151.0,0.000188,2]
[344725876,1733745054941,-288.573388,0.000188,2]
[344725877,1733745054951,-288.573388,0.000188,2]
[344725878,1733745054961,-151.0,0.000188,2]
[344725879,1733745054971,-151.0,0.000188,2]
[344725880,1733745054980,-151.0,0.000188,2]
[344725881,1733745054990,-219.405489,0.000188,2]
[344725882,1733745054999,-219.405489,0.000188,2]
[344725883,1733745055009,-151.0,0.000188,2]
[344725884,1733745055018,-288.362821,0.000188,2]
[344725885,1733745055028,-288.362821,0.000188,2]
[344725886,1733745055039,-160.931551,0.000188,2]
[344725887,1733745055048,-160.931551,0.000188,2]
[344725888,1733745055057,-253.590063,0.000188,2]
[344725889,1733745055067,-485.648918,0.000188,2]
[344725890,1733745055076,-485.648918,0.000188,2]
[344725891,1733745055085,-158.748726,0.000188,2]
[344725892,1733745055095,-151.0,0.000188,2]
[344725893,1733745055104,-2453.246892,0.000188,2]
[344725894,1733745055113,-2453.246892,0.000188,2]
[344725895,1733745055122,-151.0,0.000188,2]
[344725896,1733745055132,-573.492229,0.000188,2]
[344725897,1733745055141,-573.492229,0.000188,2]
[344725898,1733745055150,-151.0,0.000188,2]
[344725899,1733745055160,-151.0,0.000188,2]
[344725900,1733745055169,-594.010098,0.000188,2]
[344725901,1733745055179,-594.010098,0.000188,2]
[344725902,1733745055188,-150.0,0.00018812,2]
[344725903,1733745055197,-150.0,0.00018819,2]
[344725904,1733745055206,-150.0,0.00018822,2]
[344725905,1733745055216,-150.0,0.00018825,2]
[344725906,1733745055226,-150.0,0.00018825,2]
[344725907,1733745055235,-150.0,0.00018826,2]
[344725908,1733745055245,-1500.0,0.00018827,2]
[344725909,1733745055254,-150.0,0.00018831,2]
[344725910,1733745055263,-171.0,0.00018842,30]
[344725911,1733745055272,-1500.0,0.00018844,2]
[344725912,1733745055282,-150.0,0.00018847,2]
[344725913,1733745055293,-152.0,0.00018854,4]
[344725914,1733745055302,-1011.089004,0.00018857,2]
[344725915,1733745055311,-150.0,0.00018866,2]
[344725916,1733745055321,-1500.0,0.00018868,2]
[344725917,1733745055330,-1500.0,0.00018873,2]
[344725918,1733745055339,-150.0,0.00018874,2]
[344725919,1733745055349,-150.0,0.00018879,2]
[344725920,1733745055359,-150.0,0.00018879,2]
[344725921,1733745055369,-150.0,0.00018879,2]
[344725922,1733745055378,-150.0,0.00018879,2]
[344725923,1733745055388,-150.0,0.00018879,2]
[344725924,1733745055397,-150.0,0.00018879,2]
[344725925,1733745055406,-150.0,0.00018879,2]
[344725926,1733745055416,-150.0,0.00018879,2]
[344725927,1733745055425,-150.0,0.00018879,2]
[344725928,1733745055434,-150.0,0.00018879,2]
[344725929,1733745055444,-150.0,0.00018879,2]
[344725930,1733745055454,-6426982.02263085,0.0001888,2]
[344725931,1733745055463,-154.737417,0.0001888,2]
[344725932,1733745055473,-256.089104,0.0001888,2]
[344725933,1733745055482,-256.089104,0.0001888,2]
[344725934,1733745055493,-151.0,0.0001888,2]
[344725935,1733745055503,-288.573388,0.0001888,2]
[344725936,1733745055513,-288.573388,0.0001888,2]
[344725937,1733745055523,-151.0,0.0001888,2]
[344725938,1733745055532,-151.0,0.0001888,2]
[344725939,1733745055542,-151.0,0.0001888,2]
[344725940,1733745055552,-219.405489,0.0001888,2]
[344725941,1733745055561,-219.405489,0.0001888,2]
[344725942,1733745055570,-151.0,0.0001888,2]
[344725943,1733745055580,-288.362821,0.0001888,2]
[344725944,1733745055589,-288.362821,0.0001888,2]
[344725945,1733745055599,-160.931551,0.0001888,2]
[344725946,1733745055609,-160.931551,0.0001888,2]
[344725947,1733745055618,-485.648918,0.0001888,2]
[344725948,1733745055628,-485.648918,0.0001888,2]
[344725949,1733745055639,-150.0,0.0001888,2]
[344725950,1733745055648,-151.0,0.0001888,2]
[344725951,1733745055657,-2453.246892,0.0001888,2]
[344725952,1733745055666,-2453.246892,0.0001888,2]
[344725953,1733745055675,-151.0,0.0001888,2]
[344725954,1733745055685,-573.492229,0.0001888,2]
[344725955,1733745055694,-573.492229,0.0001888,2]
[344725956,1733745055704,-151.0,0.0001888,2]
[344725957,1733745055713,-151.0,0.0001888,2]
[344725958,1733745055722,-594.010098,0.0001888,2]
[344725959,1733745055731,-594.010098,0.0001888,2]
[344725960,1733745055741,-25475.83415149,0.000189,2]
[344725961,1733745055750,-150.0,0.00018906,2]
[344725962,1733745055759,-1500.0,0.00018909,2]
[344725963,1733745055768,-150.0,0.00018917,2]
[344725964,1733745055778,-150.0,0.00018923,2]
[344725965,1733745055793,-150.0,0.00018924,2]
[344725966,1733745055802,-150.0,0.00018928,2]
[344725967,1733745055811,-150.0,0.00018932,2]
[344725968,1733745055821,-150.0,0.00018936,2]
[344725969,1733745055831,-1500.0,0.00018941,2]
[344725970,1733745055844,-150.0,0.00018942,2]
[344725971,1733745055853,-150.0,0.00018947,2]
[344725972,1733745055862,-201.0,0.0001895,2]
[344725973,1733745055872,-300.0,0.0001895,2]
[344725974,1733745055883,-150.0,0.00018956,2]
[344725975,1733745055892,-150.0,0.00018969,2]
[344725976,1733745055901,-1500.0,0.00018976,2]
[344725977,1733745055910,-150.0,0.00018977,2]
[344725978,1733745055921,-150.0,0.00018982,2]
[344725979,1733745055932,-150.0,0.00018983,2]
[344725980,1733745055941,-150.0,0.00018986,2]
[344725981,1733745055950,-1500.0,0.00018986,2]
[344725982,1733745055960,-150.0,0.00018994,2]
[344725983,1733745055970,-418.80409714,0.00019,30]
[344725984,1733745055979,-10002.09967734,0.00019,10]
[344725985,1733745055988,-800.0,0.00019,2]
[344725986,1733745055998,-600.0,0.00019,2]
[344725987,1733745056007,-2000.0,0.00019,2]
[344725988,1733745056016,-30000.0,0.00019,2]
[344725989,1733745056025,-30000.0,0.00019,2]
[344725990,1733745056035,-30000.0,0.00019,2]
[344725991,1733745056045,-30000.0,0.00019,2]
[344725992,1733745056055,-30000.0,0.00019,2]
[344725993,1733745056064,-30000.0,0.00019,2]
[344725994,1733745056073,-30000.0,0.00019,2]
[344725995,1733745056083,-30000.0,0.00019,2]
[344725996,1733745056092,-30000.0,0.00019,2]
[344725997,1733745056101,-30000.0,0.00019,2]
[344725998,1733745056110,-30000.0,0.00019,2]
[344725999,1733745056119,-30000.0,0.00019,2]
[344726000,1733745056129,-1500.0,0.00019002,2]
[344726001,1733745056138,-1500.0,0.00019005,2]
[344726002,1733745056147,-1500.0,0.00019007,2]
[344726003,1733745056157,-13081.88209743,0.0001901,2]
[344726004,1733745056166,-150.0,0.00019012,2]
[344726005,1733745056175,-800.0,0.00019014,2]
[344726006,1733745056185,-150.0,0.00019014,2]
[344726007,1733745056194,-1500.0,0.00019015,2]
[344726008,1733745056203,-150.0,0.00019016,2]
[344726009,1733745056213,-150.0,0.00019017,2]
[344726010,1733745056222,-150.0,0.00019023,2]
[344726011,1733745056232,-150.0,0.00019026,2]
[344726012,1733745056241,-1500.0,0.00019028,2]
[344726013,1733745056251,-150.0,0.0001903,2]
[344726014,1733745056261,-150.0,0.00019043,2]
[344726015,1733745056270,-150.0,0.00019045,2]
[344726016,1733745056279,-150.0,0.00019047,2]
[344726017,1733745056288,-152.0,0.00019047,10]
[344726018,1733745056298,-1500.0,0.0001905,2]
[344726019,1733745056308,-1500.0,0.00019051,2]
[344726020,1733745056317,-150.0,0.00019053,2]
[344726021,1733745056327,-150.0,0.00019055,2]
[344726022,1733745056337,-1500.0,0.00019055,2]
[344726023,1733745056347,-150.0,0.00019056,2]
[344726024,1733745056356,-150.0,0.00019059,2]
[344726025,1733745056366,-150.0,0.00019064,2]
[344726026,1733745056375,-150.0,0.00019066,2]
[344726027,1733745056385,-150.0,0.00019067,2]
[344726028,1733745056394,-1500.0,0.0001907,2]
[344726029,1733745056404,-1500.0,0.00019075,2]
[344726030,1733745056413,-150.0,0.00019084,2]
[344726031,1733745056423,-150.0,0.00019103,2]
[344726032,1733745056433,-1500.0,0.00019106,2]
[344726033,1733745056442,-1500.0,0.00019108,2]
[344726034,1733745056452,-2543.37863656,0.0001911,2]
[344726035,1733745056462,-150.0,0.0001911,2]
[344726036,1733745056471,-150.0,0.0001914,2]
[344726037,1733745056481,-150.0,0.00019146,2]
[344726038,1733745056491,-150.0,0.00019146,2]
[344726039,1733745056500,-150.0,0.00019148,2]
[344726040,1733745056510,-150.0,0.00019153,2]
[344726041,1733745056520,-1500.0,0.00019163,2]
[344726042,1733745056530,-500.0,0.0001917,2]
[344726043,1733745056540,-500.0,0.0001917,2]
[344726044,1733745056550,-700.0,0.0001917,2]
[344726045,1733745056559,-700.0,0.0001917,2]
[344726046,1733745056569,-500.0,0.0001917,2]
[344726047,1733745056579,-1500.0,0.00019174,2]
[344726048,1733745056588,-150.0,0.00019176,2]
[344726049,1733745056598,-150.0,0.00019177,2]
[344726050,1733745056607,-1514.01,0.00019178,2]
[344726051,1733745056617,-1514.01,0.00019178,2]
[344726052,1733745056627,-1514.01,0.00019178,2]
[344726053,1733745056637,-1514.01,0.00019178,2]
[344726054,1733745056646,-1514.01,0.00019178,2]
[344726055,1733745056655,-1514.01,0.00019178,2]
[344726056,1733745056664,-1514.01,0.00019178,2]
[344726057,1733745056674,-1514.01,0.00019178,2]
[344726058,1733745056683,-1514.01,0.00019178,2]
[344726059,1733745056692,-1514.01,0.00019178,2]
[344726060,1733745056702,-1514.01,0.00019178,2]
[344726061,1733745056711,-1514.01,0.00019178,2]
[344726062,1733745056720,-1514.01,0.00019178,2]
[344726063,1733745056729,-1514.01,0.00019178,2]
[344726064,1733745056738,-1514.01,0.00019178,2]
[344726065,1733745056747,-1514.01,0.00019178,2]
[344726066,1733745056756,-1514.01,0.00019178,2]
[344726067,1733745056766,-1514.01,0.00019178,2]
[344726068,1733745056776,-1514.01,0.00019178,2]
[344726069,1733745056785,-1514.01,0.00019178,2]
[344726070,1733745056796,-1514.01,0.00019178,2]
[344726071,1733745056805,-1514.01,0.00019178,2]
[344726072,1733745056814,-1514.01,0.00019178,2]
[344726073,1733745056823,-1514.07124819,0.00019178,2]
[344726074,1733745056833,-1657.81,0.00019178,2]
[344726075,1733745056845,-1657.81,0.00019178,2]
[344726076,1733745056855,-1657.81,0.00019178,2]
[344726077,1733745056864,-1657.81,0.00019178,2]
[344726078,1733745056874,-1657.81,0.00019178,2]
[344726079,1733745056883,-1657.81,0.00019178,2]
[344726080,1733745056892,-1657.81,0.00019178,2]
[344726081,1733745056901,-1657.81,0.00019178,2]
[344726082,1733745056911,-1657.81,0.00019178,2]
[344726083,1733745056920,-1657.81,0.00019178,2]
[344726084,1733745056929,-1657.81,0.00019178,2]
[344726085,1733745056938,-1657.81,0.00019178,2]
[344726086,1733745056947,-1657.81,0.00019178,2]
[344726087,1733745056958,-1657.81,0.00019178,2]
[344726088,1733745056968,-1657.81,0.00019178,2]
[344726089,1733745056977,-1657.81,0.00019178,2]
[344726090,1733745056986,-1657.81,0.00019178,2]
[344726091,1733745056995,-1657.81,0.00019178,2]
[344726092,1733745057005,-1657.81,0.00019178,2]
[344726093,1733745057014,-1657.81,0.00019178,2]
[344726094,1733745057023,-1657.81,0.00019178,2]
[344726095,1733745057033,-1657.81,0.00019178,2]
[344726096,1733745057044,-1657.81,0.00019178,2]
[344726097,1733745057053,-1657.88131268,0.00019178,2]
[344726098,1733745057063,-3008.02819888,0.00019178,2]
[344726099,1733745057072,-3672.0,0.00019178,5]
[344726100,1733745057082,-4416.0,0.00019178,5]
[344726101,1733745057091,-2976.01,0.00019178,2]
[344726102,1733745057100,-3212.43,0.00019178,2]
[344726103,1733745057110,-151.0,0.00019178,2]
[344726104,1733745057119,-151.0,0.00019178,2]
[344726105,1733745057129,-151.0,0.00019178,2]
[344726106,1733745057138,-151.0,0.00019178,2]
[344726107,1733745057147,-151.0,0.00019178,2]
[344726108,1733745057157,-151.0,0.00019178,2]
[344726109,1733745057166,-151.0,0.00019178,2]
[344726110,1733745057175,-151.0,0.00019178,2]
[344726111,1733745057184,-151.0,0.00019178,2]
[344726112,1733745057194,-238.39148118,0.00019178,2]
[344726113,1733745057203,-150.0,0.00019178,2]
[344726114,1733745057213,-150.0,0.00019178,2]
[344726115,1733745057223,-1500.0,0.0001918,2]
[344726116,1733745057232,-150.0,0.00019184,2]
[344726117,1733745057241,-1500.0,0.00019187,2]
[344726118,1733745057251,-1500.0,0.00019191,2]
[344726119,1733745057262,-158.77798701,0.00019192,2]
[344726120,1733745057271,-150.0,0.00019194,2]
[344726121,1733745057282,-150.0,0.00019195,2]
[344726122,1733745057292,-150.0,0.00019199,2]
[344726123,1733745057302,-403199.64810409,0.000192,2]
[344726124,1733745057312,-150.0,0.00019202,2]
[344726125,1733745057321,-150.0,0.00019207,2]
[344726126,1733745057331,-150.0,0.00019218,2]
[344726127,1733745057340,-150.0,0.0001922,2]
[344726128,1733745057350,-150.0,0.00019222,2]
[344726129,1733745057359,-2964.265326,0.0001923,2]
[344726130,1733745057368,-800.0,0.00019233,2]
[344726131,1733745057377,-150.0,0.00019241,2]
[344726132,1733745057387,-1125.55,0.00019242,30]
[344726133,1733745057396,-200.0,0.00019242,2]
[344726134,1733745057406,-200.0,0.00019242,2]
[344726135,1733745057416,-1500.0,0.00019242,2]
[344726136,1733745057425,-200.0,0.00019242,2]
[344726137,1733745057435,-150.0,0.00019243,2]
[344726138,1733745057445,-150.0,0.00019244,2]
[344726139,1733745057455,-150.0,0.00019249,2]
[344726140,1733745057465,-150.0,0.00019254,2]
[344726141,1733745057475,-1500.0,0.00019255,2]
[344726142,1733745057485,-150.0,0.00019262,2]
[344726143,1733745057494,-150.0,0.00019266,2]
[344726144,1733745057504,-150.0,0.00019267,2]
[344726145,1733745057513,-150.0,0.00019271,2]
[344726146,1733745057523,-150.0,0.00019276,2]
[344726147,1733745057533,-150.0,0.00019288,2]
[344726148,1733745057543,-150.0,0.00019294,2]
[344726149,1733745057553,-150.0,0.000193,2]
[344726150,1733745057563,-1500.0,0.00019306,2]
[344726151,1733745057573,-1500.0,0.00019312,2]
[344726152,1733745057582,-150.0,0.00019313,2]
[344726153,1733745057591,-150.0,0.00019314,2]
[344726154,1733745057600,-1500.0,0.00019314,2]
[344726155,1733745057609,-150.0,0.00019319,2]
[344726156,1733745057618,-150.0,0.00019325,2]
[344726157,1733745057628,-150.0,0.00019327,2]
[344726158,1733745057637,-1500.0,0.0001933,2]
[344726159,1733745057647,-150.0,0.00019337,2]
[344726160,1733745057656,-234.5815077,0.00019343,2]
[344726161,1733745057666,-150.0,0.00019358,2]
[344726162,1733745057676,-150.0,0.0001936,2]
[344726163,1733745057686,-150.0,0.00019365,2]
[344726164,1733745057696,-1500.0,0.00019368,2]
[344726165,1733745057706,-1500.0,0.00019372,2]
[344726166,1733745057715,-150.0,0.00019385,2]
[344726167,1733745057724,-1056.0,0.00019391,2]
[344726168,1733745057734,-150.0,0.00019395,2]
[344726169,1733745057743,-150.0,0.00019401,2]
[344726170,1733745057753,-1500.0,0.00019402,2]
[344726171,1733745057762,-1500.0,0.00019406,2]
[344726172,1733745057772,-150.0,0.0001941,2]
[344726173,1733745057782,-150.0,0.00019411,2]
[344726174,1733745057792,-1500.0,0.00019416,2]
[344726175,1733745057801,-150.0,0.00019418,2]
[344726176,1733745057811,-1500.0,0.00019424,2]
[344726177,1733745057821,-150.0,0.00019429,2]
[344726178,1733745057831,-200.0,0.00019434,2]
[344726179,1733745057844,-200.0,0.00019434,2]
[344726180,1733745057853,-200.0,0.00019434,2]
[344726181,1733745057863,-150.0,0.00019434,2]
[344726182,1733745057873,-1500.0,0.00019437,2]
[344726183,1733745057884,-150.0,0.00019446,2]
[344726184,1733745057894,-150.0,0.00019451,2]
[344726185,1733745057903,-150.0,0.00019452,2]
[344726186,1733745057914,-150.0,0.00019462,2]
[344726187,1733745057924,-150.0,0.00019466,2]
[344726188,1733745057933,-500.0,0.0001947,2]
[344726189,1733745057943,-700.0,0.0001947,2]
[344726190,1733745057954,-150.0,0.00019471,2]
[344726191,1733745057965,-150.0,0.00019471,2]
[344726192,1733745057975,-171.0,0.00019474,30]
[344726193,1733745057984,-150.0,0.00019488,2]
[344726194,1733745057994,-1500.0,0.0001949,2]
[344726195,1733745058003,-317.8568641,0.00019491,2]
[344726196,1733745058013,-381.4282371,0.00019491,2]
[344726197,1733745058022,-989.4397024,0.00019491,2]
[344726198,1733745058032,-1500.0,0.00019493,2]
[344726199,1733745058041,-1500.0,0.00019495,2]
[344726200,1733745058052,-80101.27232231,0.000195,3]
[344726201,1733745058062,-154.737417,0.000195,2]
[344726202,1733745058071,-256.089104,0.000195,2]
[344726203,1733745058081,-256.089104,0.000195,2]
[344726204,1733745058090,-151.0,0.000195,2]
[344726205,1733745058100,-369.52376417,0.000195,4]
[344726206,1733745058109,-170.34598617,0.000195,4]
[344726207,1733745058119,-151.0,0.000195,2]
[344726208,1733745058128,-2453.246892,0.000195,2]
[344726209,1733745058138,-2453.246892,0.000195,2]
[344726210,1733745058147,-150.0,0.000195,4]
[344726211,1733745058157,-150.0,0.000195,4]
[344726212,1733745058167,-236.39968009,0.000195,4]
[344726213,1733745058177,-156.356438,0.000195,2]
[344726214,1733745058186,-150.0,0.000195,4]
[344726215,1733745058196,-282.14575305,0.000195,4]
[344726216,1733745058206,-150.0,0.000195,4]
[344726217,1733745058216,-150.0,0.000195,4]
[344726218,1733745058226,-150.0,0.000195,4]
[344726219,1733745058236,-150.0,0.000195,4]
[344726220,1733745058246,-156.69673388,0.000195,4]
[344726221,1733745058255,-150.0,0.000195,4]
[344726222,1733745058265,-169.66135134,0.000195,4]
[344726223,1733745058274,-150.33679454,0.000195,4]
[344726224,1733745058284,-150.0,0.000195,4]
[344726225,1733745058295,-633.9047,0.000195,2]
[344726226,1733745058304,-573.492229,0.000195,2]
[344726227,1733745058314,-573.492229,0.000195,2]
[344726228,1733745058324,-151.0,0.000195,2]
[344726229,1733745058334,-151.0,0.000195,2]
[344726230,1733745058343,-594.010098,0.000195,2]
[344726231,1733745058353,-594.010098,0.000195,2]
[344726232,1733745058362,-1006.0559,0.000195,2]
[344726233,1733745058372,-152.0,0.0001953,11]
[344726234,1733745058382,-369.52376417,0.0001955,4]
[344726235,1733745058392,-170.34598617,0.0001955,4]
[344726236,1733745058402,-236.39968009,0.0001955,4]
[344726237,1733745058411,-150.0,0.00019588,2]
[344726238,1733745058421,-150.0,0.00019593,4]
[344726239,1733745058431,-369.52376417,0.00019601,4]
[344726240,1733745058440,-170.34598617,0.00019601,4]
[344726241,1733745058450,-236.39968009,0.00019601,4]
[344726242,1733745058460,-40024.70702966,0.0001961,2]
[344726243,1733745058469,-200.0,0.00019629,2]
[344726244,1733745058479,-200.0,0.00019629,2]
[344726245,1733745058488,-200.0,0.00019629,2]
[344726246,1733745058498,-369.52376417,0.00019651,4]
[344726247,1733745058507,-170.34598617,0.00019651,4]
[344726248,1733745058517,-236.39968009,0.00019651,4]
[344726249,1733745058526,-153.49,0.00019658,2]
[344726250,1733745058535,-150.0,0.00019667,4]
[344726251,1733745058547,-150.0,0.00019685,4]
[344726252,1733745058558,-369.52376417,0.00019702,4]
[344726253,1733745058567,-170.34598617,0.00019702,4]
[344726254,1733745058577,-236.39968009,0.00019702,4]
[344726255,1733745058587,-150.0,0.00019725,2]
[344726256,1733745058597,-369.52376417,0.00019752,4]
[344726257,1733745058607,-170.34598617,0.00019752,4]
[344726258,1733745058616,-236.39968009,0.00019752,4]
[344726259,1733745058626,-150.0,0.00019778,4]
[344726260,1733745058636,-172.0,0.00019789,2]
[344726261,1733745058646,-172.0,0.00019789,2]
[344726262,1733745058656,-172.0,0.00019789,2]
[344726263,1733745058665,-172.0,0.00019789,2]
[344726264,1733745058675,-172.0,0.00019789,2]
[344726265,1733745058684,-172.0,0.00019789,2]
[344726266,1733745058693,-172.0,0.00019789,2]
[344726267,1733745058703,-172.0,0.00019789,2]
[344726268,1733745058712,-172.0,0.00019789,2]
[344726269,1733745058721,-172.0,0.00019789,2]
[344726270,1733745058730,-172.0,0.00019789,2]
[344726271,1733745058739,-172.0,0.00019789,2]
[344726272,1733745058748,-172.0,0.00019789,2]
[344726273,1733745058758,-172.0,0.00019789,2]
[344726274,1733745058767,-153.0,0.0001979,2]
[344726275,1733745058777,-153.0,0.0001979,2]
[344726276,1733745058786,-153.0,0.0001979,2]
[344726277,1733745058796,-153.0,0.0001979,2]
[344726278,1733745058805,-153.0,0.0001979,2]
[344726279,1733745058815,-153.0,0.0001979,2]
[344726280,1733745058825,-153.0,0.0001979,2]
[344726281,1733745058835,-153.0,0.0001979,2]
[344726282,1733745058848,-153.0,0.0001979,2]
[344726283,1733745058858,-153.0,0.0001979,2]
[344726284,1733745058868,-153.0,0.0001979,2]
[344726285,1733745058877,-153.0,0.0001979,2]
[344726286,1733745058889,-153.0,0.0001979,2]
[344726287,1733745058899,-172.0,0.00019797,2]
[344726288,1733745058908,-172.0,0.00019797,2]
[344726289,1733745058919,-172.0,0.00019797,2]
[344726290,1733745058928,-172.0,0.00019797,2]
[344726291,1733745058937,-172.0,0.00019797,2]
[344726292,1733745058947,-172.0,0.00019797,2]
[344726293,1733745058958,-172.0,0.00019797,2]
[344726294,1733745058967,-172.0,0.00019797,2]
[344726295,1733745058977,-172.0,0.00019797,2]
[344726296,1733745058987,-172.0,0.00019797,2]
[344726297,1733745058997,-172.0,0.00019797,2]
[344726298,1733745059007,-172.0,0.00019797,2]
[344726299,1733745059017,-172.0,0.00019797,2]
[344726300,1733745059026,-172.0,0.00019797,2]
[344726301,1733745059036,-153.0,0.00019798,2]
[344726302,1733745059046,-153.0,0.00019798,2]
[344726303,1733745059055,-153.0,0.00019798,2]
[344726304,1733745059065,-153.0,0.00019798,2]
[344726305,1733745059074,-153.0,0.00019798,2]
[344726306,1733745059084,-153.0,0.00019798,2]
[344726307,1733745059093,-153.0,0.00019798,2]
[344726308,1733745059103,-153.0,0.00019798,2]
[344726309,1733745059112,-153.0,0.00019798,2]
[344726310,1733745059122,-153.0,0.00019798,2]
[344726311,1733745059131,-153.0,0.00019798,2]
[344726312,1733745059141,-153.0,0.00019798,2]
[344726313,1733745059151,-153.0,0.00019798,2]